bitfinex/quotes_SOLUSD_20250831
["timestamp","ask_amount","ask_price","bid_price","bid_amount"]
[1756683665631,0.06,201.21,201.17,6.4559339]
[1756683665840,0.06,201.21,201.18,6.4559339]
[1756683666138,0.06,201.21,201.19,4.97042596]
[1756683666958,0.06,201.21,201.2,6.4559339]
[1756683667164,0.06,201.21,201.2,0.67]
[1756683667540,0.06,201.21,201.2,6.4559339]
[1756683667956,0.06,201.21,201.2,11.42611282]
[1756683668665,0.06,201.21,201.2,44.42611282]
[1756683668867,0.06,201.21,201.2,58.02170683]
[1756683669236,1e-08,201.21,201.2,58.02170683]
[1756683669435,1e-08,201.21,201.2,58.51872472]
[1756683670172,1e-08,201.21,201.2,52.73279082]
[1756683670353,1e-08,201.21,201.18,4.97067302]
[1756683671055,1e-08,201.21,201.18,5.64067302]
[1756683671569,5.78593391,201.21,201.18,4.97067302]
[1756683672151,5.78593391,201.21,201.18,47.87067302]
[1756683672359,5.78593391,201.21,201.18,4.97067302]
[1756683672576,5.78593391,201.21,201.18,47.87067302]
[1756683672873,1e-08,201.21,201.19,0.67]
[1756683673044,1e-08,201.21,201.18,47.87067302]
[1756683673045,1e-08,201.21,201.2,0.67]
[1756683673239,1e-08,201.21,201.19,0.67]
[1756683673451,1e-08,201.21,201.19,33.67]
[1756683673854,1e-08,201.21,201.2,4.97017892]
[1756683674057,1e-08,201.21,201.2,5.64017892]
[1756683674661,1e-08,201.21,201.2,4.97017892]
[1756683675461,1e-08,201.21,201.2,5.64017892]
[1756683675842,1e-08,201.21,201.2,47.73017892]
[1756683676064,1e-08,201.21,201.2,4.97017892]
[1756683676267,1e-08,201.21,201.2,47.71017892]
[1756683677272,1e-08,201.21,201.2,48.38017892]
[1756683677444,1e-08,201.21,201.2,47.71017892]
[1756683677649,1e-08,201.21,201.2,47.65017892]
[1756683677852,1e-08,201.21,201.2,54.10611282]
[1756683678470,1e-08,201.21,201.2,67.70170683]
[1756683678882,1e-08,201.21,201.18,4.97067173]
[1756683679043,0.65000001,201.21,201.18,42.72]
[1756683679254,5.7859339,201.19,201.18,42.72]
[1756683679457,0.65000001,201.21,201.18,42.72]
[1756683679658,1e-08,201.21,201.18,42.72]
[1756683679860,1e-08,201.21,201.19,4.97042596]
[1756683680058,1e-08,201.21,201.18,42.72]
[1756683680059,6.43593391,201.21,201.18,4.97066008]
[1756683680247,5.7859339,201.19,201.18,4.97066008]
[1756683680442,1e-08,201.21,201.19,42.68]
[1756683680649,1e-08,201.21,201.2,42.7]
[1756683681152,1e-08,201.21,201.2,42.68]
[1756683681874,6.43593391,201.21,201.16,4.97116723]
[1756683682076,5.7859339,201.19,201.17,42.68]
[1756683682258,5.7859339,201.2,201.17,42.68]
[1756683682452,6.4359339,201.2,201.17,42.68]
[1756683683270,0.65,201.2,201.17,42.68]
[1756683683770,1e-08,201.21,201.17,42.68]
[1756683683954,1e-08,201.21,201.18,4.97067302]
[1756683684859,6.4359339,201.2,201.18,4.97067302]
[1756683685184,5.7859339,201.19,201.18,4.97067302]
[1756683685469,6.4359339,201.19,201.17,42.56]
[1756683685669,6.4359339,201.18,201.17,42.56]
[1756683686101,6.4359339,201.18,201.16,42.54]
[1756683686283,6.4359339,201.18,201.15,37.97140466]
[1756683686452,6.4359339,201.18,201.16,42.54]
[1756683686653,6.4359339,201.18,201.16,42.52]
[1756683686853,6.4359339,201.17,201.14,42.5]
[1756683687048,5.7859339,201.15,201.14,42.5]
[1756683687258,6.4359339,201.15,201.14,42.5]
[1756683688162,6.4359339,201.15,201.13,42.5]
[1756683688360,0.65,201.18,201.13,42.5]
[1756683688571,5.7859339,201.16,201.14,42.48]
[1756683689955,5.7859339,201.15,201.14,47.45160285]
[1756683690256,0.65,201.17,201.14,47.45160285]
[1756683690257,5.7859339,201.17,201.14,47.45160285]
[1756683690872,0.49719088,201.21,201.14,47.45160285]
[1756683691075,5.7859339,201.2,201.14,66.33669057]
[1756683691290,0.65000001,201.21,201.14,66.33669057]
[1756683691463,5.7859339,201.2,201.14,66.33669057]
[1756683691986,5.7859339,201.2,201.14,60.55075667]
[1756683692168,5.7859339,201.19,201.14,60.55075667]
[1756683692364,5.7859339,201.19,201.15,0.72]
[1756683693072,0.65000001,201.21,201.14,59.88075667]
[1756683693073,5.7859339,201.17,201.14,47.45160285]
[1756683693280,5.7859339,201.16,201.15,42.4]
[1756683693985,5.7859339,201.17,201.15,47.37141436]
[1756683694183,6.4559339,201.17,201.15,47.37141436]
[1756683694495,5.7859339,201.16,201.12,4.97212127]
[1756683694869,5.7859339,201.16,201.13,42.38]
[1756683695683,5.7859339,201.14,201.13,42.36]
[1756683696393,5.7859339,201.14,201.11,4.97235778]
[1756683696394,6.4559339,201.14,201.11,42.34]
[1756683696581,0.67,201.13,201.11,42.34]
[1756683696901,5.7859339,201.12,201.11,42.34]
[1756683697088,6.4559339,201.12,201.1,42.34]
[1756683697265,0.67,201.12,201.1,42.34]
[1756683697471,5.7859339,201.11,201.1,42.34]
[1756683697987,6.4559339,201.11,201.1,42.34]
[1756683698171,0.67,201.11,201.06,0.03]
[1756683698507,26.0,201.09,201.04,0.03]
[1756683698676,0.67,201.09,201.04,0.03]
[1756683699007,0.49719087,201.12,201.04,43.05]
[1756683699184,0.67,201.11,201.04,43.05]
[1756683699384,5.7859339,201.05,201.04,0.03]
[1756683699693,26.0,201.09,201.04,0.03]
[1756683699874,6.4559339,201.05,201.04,0.03]
[1756683700484,0.49719087,201.08,201.04,0.03]
[1756683700674,0.67,201.07,201.04,0.03]
[1756683701301,5.7859339,201.05,201.04,0.03]
[1756683701484,0.67,201.06,201.04,0.03]
[1756683701994,5.7859339,201.05,201.04,0.03]
[1756683703276,0.67,201.08,201.04,0.03]
[1756683703476,5.7859339,201.05,201.04,0.03]
[1756683704894,5.7859339,201.06,201.04,0.03]
[1756683705074,5.7859339,201.05,201.04,0.03]
[1756683705277,0.67,201.05,201.04,0.03]
[1756683705499,5.7859339,201.05,201.04,0.03]
[1756683705881,0.67,201.08,201.04,0.03]
[1756683706085,0.67,201.11,201.04,0.75]
[1756683706391,5.7859339,201.08,201.04,0.75]
[1756683706601,5.7859339,201.09,201.05,5.69388709]
[1756683706772,5.7859339,201.1,201.06,0.72]
[1756683707202,0.49719087,201.17,201.05,47.13388709]
[1756683707203,5.7859339,201.09,201.05,47.13388709]
[1756683707386,5.7859339,201.09,201.05,47.85388709]
[1756683708112,0.67,201.12,201.05,47.85388709]
[1756683708282,5.7859339,201.1,201.05,47.85388709]
[1756683709078,26.0,201.16,201.08,5.7859339]
[1756683709079,0.67,201.16,201.08,5.7859339]
[1756683709394,5.7859339,201.16,201.1,5.7859339]
[1756683709587,5.7859339,201.15,201.09,42.86]
[1756683709789,0.67,201.18,201.1,5.7859339]
[1756683709994,0.67,201.18,201.11,6.5059339]
[1756683710192,5.7859339,201.16,201.12,4.97215592]
[1756683710386,5.7859339,201.16,201.12,5.69215592]
[1756683711181,5.7859339,201.13,201.11,4.97236774]
[1756683711385,0.67,201.15,201.11,4.97236774]
[1756683711698,5.7859339,201.12,201.04,38.815934]
[1756683711878,5.7859339,201.09,201.06,0.72]
[1756683712207,5.7859339,201.07,201.04,33.03]
[1756683712499,5.7859339,201.05,201.04,75.11]
[1756683712677,5.7859339,201.05,201.04,0.03]
[1756683713296,6.4559339,201.05,201.04,0.03]
[1756683714405,5.7859339,201.05,201.04,0.03]
[1756683714992,6.4559339,201.05,201.04,0.03]
[1756683715599,0.67,201.05,201.04,0.03]
[1756683715900,5.7859339,201.05,201.04,0.03]
[1756683716400,0.06,201.06,201.04,0.03]
[1756683716592,5.7859339,201.05,201.04,0.03]
[1756683716985,0.06,201.06,201.04,0.75]
[1756683717376,0.06,201.06,201.05,0.72]
[1756683718399,0.06,201.06,201.05,11.47982099]
[1756683718906,0.06,201.06,201.05,5.69388709]
[1756683719282,0.06,201.06,201.05,4.97388709]
[1756683719482,0.06,201.06,201.05,5.69388709]
[1756683719997,0.06,201.06,201.05,38.69388709]
[1756683720520,0.06,201.06,201.05,44.47982099]
[1756683720710,0.06,201.09,201.08,19.38152791]
[1756683721012,0.06,201.09,201.08,61.28152791]
[1756683721196,0.06,201.09,201.08,62.00152791]
[1756683721703,1e-08,201.09,201.08,62.00152791]
[1756683722404,1e-08,201.09,201.08,66.97467292]
[1756683724335,1e-08,201.09,201.08,66.91467292]
[1756683725012,1e-08,201.09,201.08,99.91467292]
[1756683725214,1e-08,201.09,201.08,94.12873902]
[1756683725422,1e-08,201.21,201.08,94.12873902]
[1756683725423,1e-08,201.21,201.12,13.59559401]
[1756683725601,1e-08,201.21,201.19,5.7859339]
[1756683725795,1e-08,201.21,201.2,41.82]
[1756683726589,1e-08,201.21,201.2,41.8]
[1756683726899,6.44593391,201.21,201.14,4.97166152]
[1756683727105,5.7859339,201.18,201.15,41.82]
[1756683727413,1e-08,201.21,201.15,5.7859339]
[1756683727414,0.66,201.2,201.15,5.7859339]
[1756683727618,0.66,201.2,201.16,41.82]
[1756683727914,1e-08,201.21,201.15,5.7859339]
[1756683728119,5.78593391,201.21,201.16,41.84]
[1756683728416,1e-08,201.21,201.17,20.05152791]
[1756683728615,1e-08,201.21,201.2,4.97017892]
[1756683728824,1e-08,201.21,201.2,46.81017892]
[1756683729119,1e-08,201.21,201.2,53.26611282]
[1756683729428,1e-08,201.21,201.2,66.86170683]
[1756683730120,1e-08,201.21,201.2,67.35872472]
[1756683730614,1e-08,201.21,201.2,19.73279082]
[1756683730817,1e-08,201.21,201.2,60.38577293]
[1756683731022,1e-08,201.21,201.2,46.77017892]
[1756683731196,5.78593391,201.21,201.19,41.82]
[1756683731595,0.66000001,201.21,201.2,41.8]
[1756683731827,0.66000001,201.21,201.19,41.8]
[1756683731828,6.44593391,201.21,201.19,41.8]
[1756683731995,6.4459339,201.2,201.19,41.8]
[1756683732197,0.66,201.2,201.17,41.8]
[1756683732392,5.7859339,201.2,201.17,41.8]
[1756683732798,1e-08,201.21,201.18,4.97067302]
[1756683733094,5.7859339,201.2,201.18,4.97067302]
[1756683733315,0.66,201.2,201.18,4.97067302]
[1756683733519,6.4459339,201.2,201.17,46.77086888]
[1756683733725,1e-08,201.21,201.17,46.77086888]
[1756683733920,6.44593391,201.21,201.17,46.77086888]
[1756683734119,5.7859339,201.19,201.17,41.8]
[1756683734306,6.4459339,201.19,201.17,46.77075503]
[1756683734628,0.66,201.18,201.17,41.76]
[1756683734999,6.4459339,201.18,201.17,41.76]
[1756683735223,6.4459339,201.18,201.17,46.73092011]
[1756683735430,0.06,201.2,201.17,46.73092011]
[1756683735805,5.7859339,201.18,201.12,10.75808982]
[1756683736002,5.7859339,201.15,201.13,41.76]
[1756683736218,5.7859339,201.16,201.13,41.76]
[1756683736516,0.66,201.19,201.13,41.76]
[1756683736730,6.4459339,201.19,201.14,4.97166152]
[1756683736902,5.7859339,201.15,201.09,4.9728977]
[1756683737228,5.7859339,201.12,201.11,41.76]
[1756683737433,6.4459339,201.12,201.11,41.76]
[1756683737738,6.4459339,201.12,201.09,41.8]
[1756683738037,6.4459339,201.11,201.09,41.8]
[1756683738611,0.66,201.14,201.09,46.77283822]
[1756683738816,6.4459339,201.13,201.09,46.77283822]
[1756683739419,5.7859339,201.12,201.09,46.77283822]
[1756683739624,5.7859339,201.11,201.09,46.77283822]
[1756683739802,5.7859339,201.1,201.09,41.8]
[1756683740126,6.4459339,201.1,201.08,41.79]
[1756683740427,5.7859339,201.09,201.08,41.79]
[1756683740810,5.7859339,201.1,201.08,46.76314501]
[1756683741427,5.7859339,201.11,201.08,46.76314501]
[1756683741728,0.66,201.14,201.08,46.76314501]
[1756683741935,5.7859339,201.12,201.08,46.76314501]
[1756683742234,6.4459339,201.12,201.08,46.76314501]
[1756683742431,0.49719087,201.17,201.08,0.03]
[1756683742432,5.7859339,201.09,201.08,0.03]
[1756683742731,6.4459339,201.09,201.08,0.03]
[1756683743236,6.4459339,201.09,201.05,0.03]
[1756683743536,5.7859339,201.06,201.05,0.03]
[1756683743740,10.7595736,201.06,201.05,0.03]
[1756683744038,11.4195736,201.06,201.05,0.03]
[1756683744608,11.91676447,201.06,201.05,0.03]
[1756683745720,11.4195736,201.06,201.05,0.03]
[1756683746406,13.4134426,201.06,201.05,0.03]
[1756683746813,13.4134426,201.06,201.04,0.03]
[1756683747029,6.28312477,201.05,201.04,0.03]
[1756683747333,31.7859339,201.02,201.01,0.03]
[1756683747833,37.91775416,201.02,201.01,0.03]
[1756683749832,43.70368806,201.02,201.01,0.03]
[1756683750213,43.70368806,201.02,200.9,0.67]
[1756683750417,5.7859339,200.93,200.9,0.67]
[1756683751136,5.7859339,200.92,200.9,0.67]
[1756683751517,5.7859339,200.93,200.9,0.67]
[1756683752042,5.7859339,200.93,200.91,4.97735304]
[1756683752637,5.7859339,200.93,200.9,5.64757168]
[1756683753513,5.7859339,200.92,200.9,4.97757168]
[1756683753920,5.7859339,200.92,200.9,5.00757168]
[1756683754328,5.7859339,200.91,200.9,0.03]
[1756683754845,1.17719087,200.95,200.9,0.7]
[1756683755010,5.7859339,200.92,200.9,0.03]
[1756683755641,0.68,200.94,200.9,0.03]
[1756683755821,5.7859339,200.92,200.9,0.03]
[1756683756218,0.49719087,200.96,200.91,0.67]
[1756683756419,5.7859339,200.98,200.92,5.7859339]
[1756683756628,5.7859339,200.96,200.92,0.67]
[1756683756832,5.7859339,200.93,200.9,0.03]
[1756683757154,5.7859339,200.92,200.9,0.03]
[1756683758223,5.7859339,200.91,200.9,0.03]
[1756683758538,1.17719087,200.95,200.9,0.03]
[1756683758742,5.7859339,200.92,200.9,0.03]
[1756683759454,0.68,200.94,200.9,0.03]
[1756683759643,5.7859339,200.92,200.9,0.03]
[1756683760030,3.61774585,200.92,200.9,0.03]
[1756683760950,0.68,200.94,200.9,0.03]
[1756683761320,0.68,200.93,200.9,0.03]
[1756683761963,0.68,200.95,200.9,0.03]
[1756683762147,0.49719087,200.94,200.9,0.03]
[1756683762327,1.17719087,200.94,200.9,0.03]
[1756683762532,0.68,200.93,200.9,0.03]
[1756683762850,4.29774585,200.94,200.91,4.97735304]
[1756683763139,3.61774585,200.94,200.91,4.97735304]
[1756683763347,0.68,200.96,200.91,4.97735304]
[1756683763552,3.61774585,200.98,200.92,4.28774585]
[1756683763746,3.61774585,200.98,200.93,3.61774585]
[1756683763923,3.61774585,200.97,200.93,0.67]
[1756683764658,3.61774585,200.97,200.94,0.67]
[1756683764823,0.68,200.96,200.91,4.97735304]
[1756683765034,0.68,200.95,200.91,4.97735304]
[1756683765335,3.61774585,200.96,200.91,5.64735304]
[1756683765538,4.29774585,200.96,200.91,5.64735304]
[1756683765957,3.61774585,200.98,200.93,3.61774585]
[1756683766166,3.61774585,200.99,200.94,0.67]
[1756683766348,4.29774585,200.99,200.94,0.67]
[1756683766680,4.29774585,200.98,200.92,4.28774585]
[1756683766844,3.61774585,200.97,200.93,4.97685761]
[1756683767187,3.61774585,200.97,200.93,5.64685761]
[1756683767543,3.61774585,200.97,200.93,0.67]
[1756683767761,3.61774585,200.94,200.9,0.03]
[1756683767964,3.61774585,200.91,200.9,0.03]
[1756683768149,4.29774585,200.93,200.9,5.0074841]
[1756683768453,3.61774585,200.94,200.9,5.6774841]
[1756683768668,3.61774585,200.94,200.9,5.0074841]
[1756683768973,3.61774585,200.93,200.9,0.03]
[1756683769173,3.61774585,200.96,200.91,0.67]
[1756683769500,0.68,200.99,200.9,3.64774585]
[1756683769501,3.61774585,200.98,200.92,4.28774585]
[1756683770281,0.68,200.99,200.92,0.67]
[1756683770282,3.61774585,200.97,200.92,0.67]
[1756683770448,3.61774585,200.96,200.92,0.67]
[1756683770845,0.68,200.99,200.92,33.67]
[1756683771066,3.61774585,200.96,200.93,4.97685761]
[1756683772060,0.68,201.0,200.94,0.67]
[1756683772265,3.61774585,200.97,200.93,4.97685761]
[1756683772471,3.61774585,200.97,200.93,5.64685761]
[1756683772874,3.61774585,200.95,200.92,33.0]
[1756683773172,3.61774585,200.95,200.91,4.97735304]
[1756683773557,3.61774585,200.95,200.91,5.64735304]
[1756683774958,1.17719087,200.98,200.91,4.97735304]
[1756683775160,3.61774585,200.97,200.92,0.67]
[1756683775371,4.29774585,200.97,200.92,0.67]
[1756683775563,4.29774585,200.97,200.92,79.37]
[1756683776154,4.29774585,200.97,200.93,4.97685761]
[1756683777258,0.68,200.97,200.93,5.64685761]
[1756683777594,3.61774585,200.97,200.93,5.64685761]
[1756683777954,0.68,200.98,200.93,5.64685761]
[1756683778159,3.61774585,200.96,200.93,5.64685761]
[1756683778454,3.61774585,200.95,200.92,78.7]
[1756683778685,0.68,200.96,200.92,78.7]
[1756683778987,3.61774585,200.94,200.92,78.7]
[1756683779184,3.61774585,200.96,200.93,0.67]
[1756683779395,1.17719087,200.99,200.92,96.11971728]
[1756683779602,3.61774585,200.96,200.92,96.11971728]
[1756683779761,4.29774585,200.95,200.92,33.0]
[1756683779967,4.29774585,200.94,200.92,33.0]
[1756683780168,3.61774585,200.93,200.9,5.00756224]
[1756683780365,0.68,200.98,200.91,0.67]
[1756683780565,0.74,201.01,200.94,3.61774585]
[1756683780868,4.35774585,201.01,200.95,3.61774585]
[1756683781065,0.06,201.01,200.96,46.04774585]
[1756683781268,4.35774585,201.01,200.96,42.43]
[1756683781466,4.35774585,201.01,200.96,47.40587558]
[1756683781669,3.61774585,201.0,200.96,47.40587558]
[1756683782676,0.06,201.01,200.97,0.69]
[1756683783098,3.67774585,201.01,200.97,33.69]
[1756683783599,3.61774585,200.98,200.97,33.0]
[1756683783901,3.61774585,200.98,200.97,74.76]
[1756683784070,3.61774585,200.99,200.97,41.76]
[1756683784269,3.61774585,200.98,200.9,0.52776007]
[1756683784528,3.61774585,200.97,200.92,4.30774585]
[1756683784797,3.61774585,200.97,200.93,42.45]
[1756683785008,0.68,200.99,200.94,41.76]
[1756683785165,3.61774585,200.96,200.94,41.76]
[1756683785565,3.61774585,200.97,200.93,79.39]
[1756683785802,3.61774585,200.96,200.94,41.74]
[1756683786091,3.61774585,200.97,200.94,41.74]
[1756683786299,3.61774585,200.97,200.94,42.43]
[1756683786500,0.06,201.01,200.95,0.69]
[1756683786664,0.06,201.01,200.96,3.61774585]
[1756683786863,3.61774585,201.0,200.94,3.61774585]
[1756683787104,3.61774585,200.99,200.95,41.74]
[1756683787297,3.61774585,200.99,200.96,0.69]
[1756683787701,3.61774585,200.99,200.97,4.97586704]
[1756683787905,3.61774585,201.0,200.97,4.97586704]
[1756683788068,0.06,201.01,200.98,0.69]
[1756683788263,0.06,201.01,200.99,42.43]
[1756683788468,0.06,201.01,201.0,0.69]
[1756683788696,0.06,201.01,201.0,42.43]
[1756683789765,0.06,201.01,201.0,5.66512437]
[1756683789965,0.06,201.01,201.0,47.40512437]
[1756683790771,0.06,201.01,201.0,41.74]
[1756683791201,0.06,201.01,201.0,47.40512437]
[1756683792201,0.06,201.01,201.0,51.02287022]
[1756683792502,0.06,201.01,201.0,26.49621008]
[1756683792503,1e-08,201.01,201.0,26.49621008]
[1756683792701,1e-08,201.01,201.0,68.23621008]
[1756683793071,1e-08,201.01,201.0,94.00071838]
[1756683793268,1e-08,201.01,201.0,101.23621008]
[1756683793502,1e-08,201.04,201.01,13.59559401]
[1756683793682,1e-08,201.04,201.03,17.21333986]
[1756683793878,1e-08,201.04,201.03,63.90772179]
[1756683794190,1e-08,201.04,201.03,64.59772179]
[1756683796727,0.68,201.14,201.03,134.90558628]
[1756683796884,4.35774585,201.18,201.13,3.61774585]
[1756683797212,0.68,201.17,201.14,41.72]
[1756683797411,0.68,201.16,201.14,41.72]
[1756683797621,0.06,201.18,201.14,41.72]
[1756683797782,0.06,201.18,201.17,3.61774585]
[1756683797983,0.06,201.18,201.17,45.33774585]
[1756683798403,0.06,201.18,201.17,47.38092011]
[1756683798609,0.06,201.18,201.17,50.30866596]
[1756683798918,0.06,201.18,201.17,50.97866596]
[1756683800018,0.06,201.18,201.17,83.97866596]
[1756683801916,0.06,201.18,201.17,97.57425997]
[1756683802099,0.06,201.18,201.17,93.95651412]
[1756683802290,0.06,201.18,201.17,97.57425997]
[1756683802783,0.06,201.18,201.17,52.25651412]
[1756683803115,0.06,201.18,201.17,97.55425997]
[1756683803692,0.06,201.18,201.17,52.25651412]
[1756683803894,1e-08,201.18,201.17,97.55425997]
[1756683804099,1e-08,201.2,201.18,13.59559401]
[1756683804301,1e-08,201.22,201.21,39.59559401]
[1756683804514,1e-08,201.22,201.21,85.39033305]
[1756683804728,0.06,201.24,201.22,17.21333986]
[1756683804910,0.06,201.24,201.22,17.90333986]
[1756683805105,1e-08,201.23,201.22,17.90333986]
[1756683805829,1e-08,201.24,201.23,17.21333986]
[1756683806036,1e-08,201.24,201.23,60.06028365]
[1756683806232,1e-08,201.24,201.23,14.28559401]
[1756683806449,1e-08,201.24,201.23,64.53277781]
[1756683806751,1e-08,201.24,201.23,61.41197575]
[1756683806894,1e-08,201.24,201.23,60.91503196]
[1756683807090,1e-08,201.24,201.23,22.87277781]
[1756683807323,1e-08,201.24,201.23,18.56503196]
[1756683807503,1e-08,201.24,201.23,60.22503196]
[1756683807700,1e-08,201.24,201.23,63.84277781]
[1756683807926,0.68000001,201.24,201.23,41.66]
[1756683808425,1e-08,201.24,201.23,45.27774585]
[1756683808630,1e-08,201.24,201.23,50.2471838]
[1756683808833,1e-08,201.24,201.23,64.53277781]
[1756683809512,1e-08,201.24,201.23,18.56503196]
[1756683809703,1e-08,201.24,201.23,60.20503196]
[1756683809906,1e-08,201.24,201.16,1.991189]
[1756683809907,4.29774586,201.24,201.16,1.991189]
[1756683810233,4.29774586,201.24,200.97,44.87899926]
[1756683810234,3.61774585,201.17,201.13,41.64]
[1756683810400,26.49719087,201.23,201.14,41.64]
[1756683810607,3.61774585,201.16,201.15,41.64]
[1756683811830,4.29774585,201.16,201.15,41.64]
[1756683812026,0.68,201.16,201.15,41.64]
[1756683812324,0.68,201.16,201.12,18.5677303]
[1756683812325,4.29774585,201.16,201.12,18.5677303]
[1756683812625,3.61774585,201.13,201.11,33.0]
[1756683812828,4.11493672,201.2,201.1,4.97253038]
[1756683812829,4.32774585,201.12,201.1,41.64]
[1756683813029,4.32774585,201.11,201.06,4.9736397]
[1756683813228,29.61774585,201.07,201.03,0.03]
[1756683813452,3.61774585,201.04,201.03,0.03]
[1756683813835,4.32774585,201.04,201.03,0.03]
[1756683814031,6.49261347,201.04,201.03,0.03]
[1756683819063,11.96393884,201.04,201.03,0.03]
[1756683819233,6.98980434,201.04,201.03,0.03]
[1756683819426,6.49261347,201.04,201.03,0.03]
[1756683819656,11.46674797,201.04,201.03,0.03]
[1756683820646,5.6841345,201.04,201.03,0.03]
[1756683820846,11.46674797,201.04,201.03,0.03]
[1756683821970,32.49261347,201.04,201.03,0.03]
[1756683823770,5.78261347,201.04,201.03,0.03]
[1756683824552,26.71,201.06,201.03,0.03]
[1756683824959,5.78261347,201.04,201.03,0.03]
[1756683826557,6.49261347,201.04,201.03,0.03]
[1756683828962,5.78261347,201.04,201.03,0.03]
[1756683830956,6.49261347,201.04,201.03,0.03]
[1756683833734,5.78261347,201.04,201.03,0.03]
[1756683836043,3.61448446,201.04,201.03,0.03]
[1756683836469,4.32448446,201.04,201.03,0.03]
[1756683836769,3.61448446,201.04,201.03,0.03]
[1756683836968,4.32448446,201.04,201.03,0.03]
[1756683837143,0.71,201.04,201.03,0.03]
[1756683837464,4.32448446,201.04,201.03,0.03]
[1756683837761,9.79580983,201.04,201.03,0.03]
[1756683837966,4.11167533,201.04,201.03,0.03]
[1756683838264,3.61448446,201.04,201.03,0.03]
[1756683840437,0.71,201.05,201.03,0.03]
[1756683840655,3.61448446,201.04,201.03,0.03]
[1756683840835,4.32448446,201.04,201.03,0.03]
[1756683841040,3.61448446,201.04,201.03,0.03]
[1756683841465,0.49719087,201.06,201.03,0.03]
[1756683841761,3.61448446,201.04,201.03,0.03]
[1756683842941,0.69,201.05,201.03,0.03]
[1756683843167,3.61448446,201.04,201.03,0.03]
[1756683844598,4.30448446,201.04,201.03,0.03]
[1756683844949,9.27861896,201.04,201.03,0.03]
[1756683845455,4.30448446,201.04,201.03,0.03]
[1756683845668,9.27861896,201.04,201.03,0.03]
[1756683846178,9.77580983,201.04,201.03,0.03]
[1756683846960,30.30448446,201.04,201.03,0.03]
[1756683847664,35.27861896,201.04,201.03,0.03]
[1756683848061,26.0,201.04,201.03,0.03]
[1756683848265,29.61448446,201.04,201.03,0.03]
[1756683850852,4.30448446,201.04,201.03,0.03]
[1756683851043,30.30448446,201.04,201.03,0.03]
[1756683851468,29.61448446,201.04,201.03,0.03]
[1756683852058,3.61448446,201.04,201.03,0.03]
[1756683852251,29.61448446,201.04,201.03,0.03]
[1756683852451,3.61448446,201.04,201.03,0.03]
[1756683853256,1.18719087,201.06,201.03,0.03]
[1756683853477,3.61448446,201.04,201.03,0.03]
[1756683854760,0.69,201.06,201.03,0.03]
[1756683854962,3.61448446,201.04,201.03,0.03]
[1756683856373,5.66370198,201.06,201.03,0.03]
[1756683856566,3.61448446,201.04,201.03,0.03]
[1756683857383,26.0,201.06,201.03,0.7]
[1756683857586,3.61448446,201.05,201.03,0.03]
[1756683857756,3.61448446,201.04,201.03,0.03]
[1756683857958,3.61448446,201.04,201.03,0.7]
[1756683858789,26.0,201.07,201.03,0.7]
[1756683858966,26.0,201.06,201.03,0.7]
[1756683859294,3.61448446,201.05,201.03,0.7]
[1756683859469,30.97346662,201.07,201.03,0.03]
[1756683859663,3.61448446,201.04,201.03,0.03]
[1756683862867,9.27861896,201.04,201.03,0.03]
[1756683863688,4.30448446,201.04,201.03,0.03]
[1756683865863,9.27861896,201.04,201.03,0.03]
[1756683866077,4.30448446,201.04,201.03,0.03]
[1756683866582,1.18719087,201.04,201.03,0.03]
[1756683866788,4.80167533,201.04,201.03,0.03]
[1756683867172,30.80167533,201.04,201.03,0.03]
[1756683869092,35.77580983,201.04,201.03,0.03]
[1756683869289,1.18719087,201.04,201.03,0.03]
[1756683869596,4.80167533,201.04,201.03,0.03]
[1756683869787,1.18719087,201.04,201.03,0.03]